[Event "*** Titled Tuesday Blitz"]
[Site "Chess.com"]
[Date "2020.05.19"]
[Round "5"]
[White "Shivagami"]
[Black "WPWPWP-2015"]
[Result "0-1"]
[WhiteElo "2182"]
[BlackElo "2409"]
[TimeControl "180+1"]
[EndTime "12:57:03 PDT"]
[Termination "WPWPWP-2015 won by resignation"]

1. d4 {[%clk 0:03:00.9]} 1... Nf6 {[%clk 0:02:50.3]} 2. c4 {[%clk 0:02:59.9]}
2... e6 {[%clk 0:02:46.5]} 3. Nc3 {[%clk 0:03:00.3]} 3... Bb4 {[%clk 0:02:44.9]}
4. f3 {[%clk 0:03:00.3]} 4... O-O {[%clk 0:02:42.9]} 5. a3 {[%clk 0:02:57.1]}
5... Bxc3+ {[%clk 0:02:42.2]} 6. bxc3 {[%clk 0:02:58]} 6... d5 {[%clk
0:02:38.3]} 7. cxd5 {[%clk 0:02:57.2]} 7... exd5 {[%clk 0:02:37.1]} 8. e3 {[%clk
0:02:51.8]} 8... Bf5 {[%clk 0:02:33.3]} 9. Bd3 {[%clk 0:02:38.8]} 9... Bg6
{[%clk 0:02:29.5]} 10. Ne2 {[%clk 0:02:36.1]} 10... Nbd7 {[%clk 0:02:27]} 11.
O-O {[%clk 0:02:30]} 11... Nb6 {[%clk 0:02:24.3]} 12. Ng3 {[%clk 0:02:26]} 12...
Rc8 {[%clk 0:02:14.8]} 13. e4 {[%clk 0:02:23.4]} 13... dxe4 {[%clk 0:02:11.5]}
14. fxe4 {[%clk 0:02:23.6]} 14... Qd7 {[%clk 0:02:06]} 15. Bg5 {[%clk 0:02:12]}
15... Ne8 {[%clk 0:02:02.1]} 16. e5 {[%clk 0:01:53.1]} 16... c5 {[%clk
0:01:54.9]} 17. Nf5 {[%clk 0:01:45.6]} 17... f6 {[%clk 0:01:48.1]} 18. exf6
{[%clk 0:01:37.1]} 18... Nxf6 {[%clk 0:01:47.1]} 19. dxc5 {[%clk 0:01:09.4]}
19... Rxc5 {[%clk 0:01:36.7]} 20. Bxf6 {[%clk 0:00:35.2]} 20... Rxf6 {[%clk
0:01:33.3]} 21. Nh6+ {[%clk 0:00:24]} 21... Kh8 {[%clk 0:01:32.1]} 22. Rxf6
{[%clk 0:00:23.3]} 22... gxf6 {[%clk 0:01:30.2]} 23. Bxg6 {[%clk 0:00:21.9]}
23... hxg6 {[%clk 0:01:28.3]} 24. Qxd7 {[%clk 0:00:17.7]} 24... Nxd7 {[%clk
0:01:27.7]} 25. Nf7+ {[%clk 0:00:17.2]} 25... Kg7 {[%clk 0:01:27]} 26. Nd6
{[%clk 0:00:17.8]} 26... b6 {[%clk 0:01:20]} 27. Re1 {[%clk 0:00:14.6]} 27...
Ne5 {[%clk 0:01:18.3]} 28. Rc1 {[%clk 0:00:10.6]} 28... Nd3 {[%clk 0:01:12]} 29.
Rc2 {[%clk 0:00:10.3]} 29... f5 {[%clk 0:01:07.4]} 30. Kf1 {[%clk 0:00:09.1]}
30... Ne5 {[%clk 0:00:40.6]} 31. Ke2 {[%clk 0:00:08.6]} 31... Kf6 {[%clk
0:00:35.3]} 32. h3 {[%clk 0:00:07.8]} 32... Ke6 {[%clk 0:00:34]} 33. Ne8 {[%clk
0:00:07.9]} 33... Ke7 {[%clk 0:00:31.9]} 34. Ng7 {[%clk 0:00:07.7]} 34... Kf7
{[%clk 0:00:31.8]} 0-1

[Event "*** Titled Tuesday Blitz"]
[Site "Chess.com"]
[Date "2020.05.19"]
[Round "5"]
[White "garfield_pg"]
[Black "Justinz"]
[Result "1-0"]
[WhiteElo "2164"]
[BlackElo "2313"]
[TimeControl "180+1"]
[EndTime "12:57:04 PDT"]
[Termination "garfield_pg won by resignation"]

1. e4 {[%clk 0:03:00.9]} 1... c5 {[%clk 0:02:59.6]} 2. d4 {[%clk 0:02:57.7]}
2... cxd4 {[%clk 0:02:58.8]} 3. Nf3 {[%clk 0:02:57.6]} 3... d6 {[%clk
0:02:55.5]} 4. Nxd4 {[%clk 0:02:57.7]} 4... Nf6 {[%clk 0:02:55]} 5. Nc3 {[%clk
0:02:58]} 5... a6 {[%clk 0:02:55]} 6. Be3 {[%clk 0:02:58.1]} 6... e5 {[%clk
0:02:54.6]} 7. Nb3 {[%clk 0:02:58.6]} 7... Be7 {[%clk 0:02:53.1]} 8. f3 {[%clk
0:02:58.8]} 8... Be6 {[%clk 0:02:52]} 9. Qd2 {[%clk 0:02:59.7]} 9... h5 {[%clk
0:02:51.2]} 10. O-O-O {[%clk 0:03:00]} 10... Nbd7 {[%clk 0:02:51]} 11. Qf2
{[%clk 0:02:59.7]} 11... Rc8 {[%clk 0:02:48]} 12. Kb1 {[%clk 0:02:59.9]} 12...
Qc7 {[%clk 0:02:43.5]} 13. g3 {[%clk 0:02:59.9]} 13... b5 {[%clk 0:02:41.1]} 14.
h3 {[%clk 0:02:57.7]} 14... b4 {[%clk 0:02:31.7]} 15. Nd5 {[%clk 0:02:57.7]}
15... Nxd5 {[%clk 0:02:31.6]} 16. exd5 {[%clk 0:02:58.6]} 16... Bf5 {[%clk
0:02:31.8]} 17. Bd3 {[%clk 0:02:57.7]} 17... Bxd3 {[%clk 0:02:31.6]} 18. Rxd3
{[%clk 0:02:57]} 18... a5 {[%clk 0:02:31.7]} 19. f4 {[%clk 0:02:41.8]} 19... a4
{[%clk 0:02:30.4]} 20. Nc1 {[%clk 0:02:36.5]} 20... O-O {[%clk 0:02:13.8]} 21.
Rhd1 {[%clk 0:01:45]} 21... Rfe8 {[%clk 0:02:08.6]} 22. g4 {[%clk 0:01:39.5]}
22... exf4 {[%clk 0:02:06.8]} 23. Bxf4 {[%clk 0:01:39.1]} 23... h4 {[%clk
0:02:06.8]} 24. g5 {[%clk 0:01:35.2]} 24... Bf8 {[%clk 0:02:06.5]} 25. Rd4
{[%clk 0:01:28.7]} 25... Qc5 {[%clk 0:02:00.3]} 26. Nd3 {[%clk 0:01:21.5]} 26...
Qb6 {[%clk 0:01:55.5]} 27. Nxb4 {[%clk 0:01:16.8]} 27... Ne5 {[%clk 0:01:55.3]}
28. Nc6 {[%clk 0:01:10.5]} 28... Nxc6 {[%clk 0:01:44.7]} 29. dxc6 {[%clk
0:01:11.4]} 29... Rxc6 {[%clk 0:01:44.8]} 30. Qd2 {[%clk 0:01:08.2]} 30... Rb8
{[%clk 0:01:36.3]} 31. b3 {[%clk 0:01:08.4]} 31... axb3 {[%clk 0:01:36.4]} 32.
cxb3 {[%clk 0:01:08.8]} 32... Rd8 {[%clk 0:01:28]} 33. Be3 {[%clk 0:01:03.5]}
33... Qa6 {[%clk 0:01:26.3]} 34. Rxh4 {[%clk 0:01:00.2]} 34... Rdc8 {[%clk
0:01:20.3]} 35. Qd3 {[%clk 0:00:49.9]} 35... Qxd3+ {[%clk 0:01:20.5]} 36. Rxd3
{[%clk 0:00:49.5]} 36... Rc2 {[%clk 0:01:19]} 37. Rd2 {[%clk 0:00:49]} 37...
Rc1+ {[%clk 0:01:18.4]} 38. Kb2 {[%clk 0:00:48.9]} 38... g6 {[%clk 0:01:18.6]}
39. Bd4 {[%clk 0:00:41.2]} 39... Bg7 {[%clk 0:01:16.3]} 40. Bxg7 {[%clk
0:00:40.4]} 40... Kxg7 {[%clk 0:01:17.2]} 41. Rhd4 {[%clk 0:00:40.9]} 41... Rh1
{[%clk 0:01:14.6]} 42. h4 {[%clk 0:00:41.1]} 42... Rcc1 {[%clk 0:01:12.7]} 43.
a4 {[%clk 0:00:40.9]} 43... Ra1 {[%clk 0:01:11.6]} 44. Kc3 {[%clk 0:00:39.6]}
44... Rab1 {[%clk 0:01:08.2]} 45. Kb4 {[%clk 0:00:38.7]} 45... Rh3 {[%clk
0:01:07.8]} 46. R2d3 {[%clk 0:00:39]} 46... Rh2 {[%clk 0:00:48.1]} 47. a5 {[%clk
0:00:38.7]} 47... Rhb2 {[%clk 0:00:45.3]} 48. Rxd6 {[%clk 0:00:38.6]} 48... Rh1
{[%clk 0:00:41.4]} 49. R6d4 {[%clk 0:00:37.1]} 49... Rhb1 {[%clk 0:00:41]} 50.
a6 {[%clk 0:00:36]} 50... Kg8 {[%clk 0:00:38.7]} 51. Rd7 {[%clk 0:00:33.9]}
51... Rf1 {[%clk 0:00:34]} 52. a7 {[%clk 0:00:32.9]} 1-0

[Event "*** Titled Tuesday Blitz"]
[Site "Chess.com"]
[Date "2020.05.19"]
[Round "5"]
[White "SergioGarciaFuentes"]
[Black "silverback96"]
[Result "0-1"]
[WhiteElo "2123"]
[BlackElo "2322"]
[TimeControl "180+1"]
[EndTime "12:57:05 PDT"]
[Termination "silverback96 won by resignation"]

1. Nf3 {[%clk 0:03:00.9]} 1... c5 {[%clk 0:02:31.3]} 2. g3 {[%clk 0:02:57.7]}
2... Nc6 {[%clk 0:02:30.2]} 3. d4 {[%clk 0:02:57.2]} 3... d5 {[%clk 0:02:31.1]}
4. Bg2 {[%clk 0:02:55.1]} 4... cxd4 {[%clk 0:02:27.4]} 5. Nxd4 {[%clk
0:02:52.6]} 5... Bd7 {[%clk 0:02:28]} 6. Bxd5 {[%clk 0:02:50.9]} 6... Nxd4
{[%clk 0:02:27.3]} 7. Qxd4 {[%clk 0:02:41.1]} 7... Rc8 {[%clk 0:02:06.2]} 8. c4
{[%clk 0:02:23.8]} 8... Bh3 {[%clk 0:01:54.8]} 9. Qh4 {[%clk 0:01:58]} 9... Qd7
{[%clk 0:01:44.8]} 10. Nc3 {[%clk 0:01:52.6]} 10... Nf6 {[%clk 0:01:44.6]} 11.
Bf3 {[%clk 0:01:38.3]} 11... e5 {[%clk 0:01:18.4]} 12. Bg5 {[%clk 0:01:14.2]}
12... Be7 {[%clk 0:01:18.5]} 13. Rd1 {[%clk 0:01:01.4]} 13... Qf5 {[%clk
0:01:04.6]} 14. Bxf6 {[%clk 0:00:50]} 14... Bxf6 {[%clk 0:01:02.8]} 15. Qe4
{[%clk 0:00:49.9]} 15... Qxe4 {[%clk 0:00:47.4]} 16. Nxe4 {[%clk 0:00:48.5]}
16... Be7 {[%clk 0:00:41.7]} 17. b3 {[%clk 0:00:47.2]} 17... O-O {[%clk
0:00:40.2]} 18. g4 {[%clk 0:00:42.9]} 18... h5 {[%clk 0:00:33.2]} 19. gxh5
{[%clk 0:00:36.5]} 19... f5 {[%clk 0:00:33.4]} 20. Nc3 {[%clk 0:00:29.6]} 20...
e4 {[%clk 0:00:33.5]} 21. Nxe4 {[%clk 0:00:29.1]} 21... fxe4 {[%clk 0:00:34.4]}
22. Bxe4 {[%clk 0:00:29.5]} 22... Bh4 {[%clk 0:00:34.9]} 23. Bf3 {[%clk
0:00:21.6]} 23... Rce8 {[%clk 0:00:32.5]} 24. Kd2 {[%clk 0:00:19.7]} 24... Bxf2
{[%clk 0:00:32]} 25. Bxb7 {[%clk 0:00:18.7]} 25... Be3+ {[%clk 0:00:32]} 26. Kc3
{[%clk 0:00:16.1]} 26... Rf2 {[%clk 0:00:28.8]} 27. Bd5+ {[%clk 0:00:16.4]}
27... Kh8 {[%clk 0:00:28.2]} 28. Rhe1 {[%clk 0:00:16.1]} 28... Bf4 {[%clk
0:00:27.2]} 29. e3 {[%clk 0:00:15]} 29... Bxh2 {[%clk 0:00:25.6]} 30. e4 {[%clk
0:00:12.8]} 30... Be5+ {[%clk 0:00:26]} 31. Kb4 {[%clk 0:00:12.4]} 31... Rxa2
{[%clk 0:00:23.9]} 32. c5 {[%clk 0:00:12.4]} 32... Rb8+ {[%clk 0:00:22.8]} 33.
Kc4 {[%clk 0:00:12]} 33... Rc2+ {[%clk 0:00:22.8]} 34. Kd3 {[%clk 0:00:11.4]}
34... Rc3+ {[%clk 0:00:23.4]} 35. Kd2 {[%clk 0:00:10.9]} 35... Rbxb3 {[%clk
0:00:22.9]} 36. Rb1 {[%clk 0:00:09]} 36... Rxb1 {[%clk 0:00:22.6]} 37. Rxb1
{[%clk 0:00:08.5]} 37... Rxc5 {[%clk 0:00:23.5]} 0-1

[Event "*** Titled Tuesday Blitz"]
[Site "Chess.com"]
[Date "2020.05.19"]
[Round "5"]
[White "JoachimMouhamad"]
[Black "jucAxx"]
[Result "1-0"]
[WhiteElo "2316"]
[BlackElo "2087"]
[TimeControl "180+1"]
[EndTime "12:57:06 PDT"]
[Termination "JoachimMouhamad won by resignation"]

1. e4 {[%clk 0:03:00.9]} 1... e6 {[%clk 0:02:42.5]} 2. d4 {[%clk 0:02:59.4]}
2... d5 {[%clk 0:02:42.9]} 3. Nc3 {[%clk 0:02:58.9]} 3... Bb4 {[%clk 0:02:42.4]}
4. e5 {[%clk 0:02:58.3]} 4... c5 {[%clk 0:02:42.7]} 5. a3 {[%clk 0:02:58.1]}
5... Bxc3+ {[%clk 0:02:42.9]} 6. bxc3 {[%clk 0:02:59]} 6... Qc7 {[%clk
0:02:43.4]} 7. Qg4 {[%clk 0:02:57.2]} 7... Ne7 {[%clk 0:02:43.4]} 8. Qxg7 {[%clk
0:02:54.4]} 8... Rg8 {[%clk 0:02:43.5]} 9. Qxh7 {[%clk 0:02:54.9]} 9... cxd4
{[%clk 0:02:44.1]} 10. Qd3 {[%clk 0:02:53.2]} 10... Nbc6 {[%clk 0:02:33]} 11.
cxd4 {[%clk 0:02:45.9]} 11... Bd7 {[%clk 0:02:33]} 12. Nf3 {[%clk 0:02:33.5]}
12... O-O-O {[%clk 0:02:31.9]} 13. Bg5 {[%clk 0:02:21.9]} 13... Rde8 {[%clk
0:02:26.6]} 14. h4 {[%clk 0:02:20.2]} 14... Nf5 {[%clk 0:02:26.2]} 15. Bd2
{[%clk 0:02:09.7]} 15... Rg4 {[%clk 0:02:10.1]} 16. c3 {[%clk 0:01:56.9]} 16...
Na5 {[%clk 0:01:50.6]} 17. h5 {[%clk 0:01:55]} 17... Nc4 {[%clk 0:01:50.7]} 18.
h6 {[%clk 0:01:48]} 18... Rh8 {[%clk 0:01:49.8]} 19. h7 {[%clk 0:01:47.6]} 19...
Rg7 {[%clk 0:01:48.2]} 20. a4 {[%clk 0:01:32.1]} 20... Rgxh7 {[%clk 0:01:43.6]}
21. Rxh7 {[%clk 0:01:31.9]} 21... Rxh7 {[%clk 0:01:44.5]} 22. g4 {[%clk
0:01:31.6]} 22... Nxd2 {[%clk 0:01:37.4]} 23. Kxd2 {[%clk 0:01:25.5]} 23... Rh2
{[%clk 0:00:36.7]} 24. gxf5 {[%clk 0:01:21.9]} 24... Rxf2+ {[%clk 0:00:34.9]}
25. Ke3 {[%clk 0:01:21.2]} 25... Rb2 {[%clk 0:00:30.4]} 26. f6 {[%clk
0:01:09.6]} 26... Rb3 {[%clk 0:00:29.3]} 27. Kd2 {[%clk 0:01:01.8]} 27... Rb2+
{[%clk 0:00:22.3]} 28. Kc1 {[%clk 0:01:00.3]} 28... Rf2 {[%clk 0:00:21.5]} 29.
Nd2 {[%clk 0:00:54.9]} 29... Qa5 {[%clk 0:00:17.8]} 30. Ra3 {[%clk 0:00:49.2]}
30... b5 {[%clk 0:00:16.2]} 31. Nb3 {[%clk 0:00:37.5]} 31... Qb6 {[%clk
0:00:13.2]} 32. Nc5 {[%clk 0:00:33.7]} 32... bxa4 {[%clk 0:00:11.2]} 33. Qa6+
{[%clk 0:00:33.7]} 33... Qxa6 {[%clk 0:00:10.8]} 34. Bxa6+ {[%clk 0:00:34.6]}
34... Kc7 {[%clk 0:00:10.8]} 35. Nxd7 {[%clk 0:00:32.5]} 35... Kxd7 {[%clk
0:00:11.1]} 36. Rxa4 {[%clk 0:00:32.3]} 36... Kc7 {[%clk 0:00:10.9]} 37. Bd3
{[%clk 0:00:31.3]} 37... Rf3 {[%clk 0:00:10.5]} 38. Kc2 {[%clk 0:00:30.3]} 38...
Kb6 {[%clk 0:00:10.4]} 39. Ra6+ {[%clk 0:00:29.8]} 39... Kb7 {[%clk 0:00:10.9]}
40. Ra1 {[%clk 0:00:28.6]} 40... Rf2+ {[%clk 0:00:11]} 41. Kb3 {[%clk
0:00:28.5]} 41... Rf3 {[%clk 0:00:11.6]} 42. Bb5 {[%clk 0:00:27.2]} 42... Kb6
{[%clk 0:00:11.2]} 43. Be8 {[%clk 0:00:27]} 1-0

[Event "*** Titled Tuesday Blitz"]
[Site "Chess.com"]
[Date "2020.05.19"]
[Round "5"]
[White "stasiek18"]
[Black "KingChess345"]
[Result "1-0"]
[WhiteElo "2366"]
[BlackElo "2210"]
[TimeControl "180+1"]
[EndTime "12:57:08 PDT"]
[Termination "stasiek18 won on time"]

1. e4 {[%clk 0:03:00.9]} 1... c5 {[%clk 0:03:00.4]} 2. Nf3 {[%clk 0:02:59.4]}
2... Nc6 {[%clk 0:03:00.9]} 3. Bb5 {[%clk 0:02:58.5]} 3... g6 {[%clk 0:03:00.4]}
4. Bxc6 {[%clk 0:02:58.5]} 4... dxc6 {[%clk 0:03:01.3]} 5. d3 {[%clk 0:02:58.8]}
5... Bg7 {[%clk 0:03:01.7]} 6. h3 {[%clk 0:02:59]} 6... e5 {[%clk 0:03:01.9]} 7.
Be3 {[%clk 0:02:55.4]} 7... Qe7 {[%clk 0:03:02.1]} 8. Qd2 {[%clk 0:02:48.8]}
8... Nf6 {[%clk 0:03:02]} 9. Nc3 {[%clk 0:02:47.2]} 9... O-O {[%clk 0:03:01.3]}
10. O-O {[%clk 0:02:41.9]} 10... Rd8 {[%clk 0:02:57.2]} 11. Qc1 {[%clk
0:02:32.5]} 11... Ne8 {[%clk 0:02:52.7]} 12. a3 {[%clk 0:02:31.7]} 12... Nc7
{[%clk 0:02:51.6]} 13. b4 {[%clk 0:02:07.7]} 13... cxb4 {[%clk 0:02:28]} 14.
axb4 {[%clk 0:02:08.6]} 14... Qxb4 {[%clk 0:02:27.6]} 15. Qd2 {[%clk 0:02:00.7]}
15... Ne6 {[%clk 0:02:19.9]} 16. Rfb1 {[%clk 0:01:47.5]} 16... Qe7 {[%clk
0:02:11]} 17. Bxa7 {[%clk 0:01:47.2]} 17... Nd4 {[%clk 0:01:42.2]} 18. Nxd4
{[%clk 0:01:22.9]} 18... exd4 {[%clk 0:01:37.2]} 19. Ne2 {[%clk 0:01:23.1]}
19... Be6 {[%clk 0:01:26.3]} 20. Bb6 {[%clk 0:01:21]} 20... Rxa1 {[%clk
0:00:39.5]} 21. Rxa1 {[%clk 0:01:21.9]} 21... Rc8 {[%clk 0:00:36.2]} 22. Bxd4
{[%clk 0:01:15.9]} 22... c5 {[%clk 0:00:32.5]} 23. Bxg7 {[%clk 0:01:14.8]} 23...
Kxg7 {[%clk 0:00:33.1]} 24. Qc3+ {[%clk 0:01:11.7]} 24... Qf6 {[%clk 0:00:33.4]}
25. Qxf6+ {[%clk 0:01:10.4]} 25... Kxf6 {[%clk 0:00:34.3]} 26. Rb1 {[%clk
0:01:04.7]} 26... Rc7 {[%clk 0:00:27.9]} 27. Rb6 {[%clk 0:01:04.6]} 27... g5
{[%clk 0:00:22.2]} 28. f4 {[%clk 0:00:57.2]} 28... gxf4 {[%clk 0:00:21.3]} 29.
Nxf4 {[%clk 0:00:58.1]} 29... Ke5 {[%clk 0:00:21.5]} 30. g3 {[%clk 0:00:55.2]}
30... c4 {[%clk 0:00:19.8]} 31. Kf2 {[%clk 0:00:48.4]} 31... cxd3 {[%clk
0:00:16.1]} 32. cxd3 {[%clk 0:00:48.3]} 32... Kd4 {[%clk 0:00:10.5]} 33. Rd6+
{[%clk 0:00:29.4]} 33... Ke5 {[%clk 0:00:10.3]} 34. Rd8 {[%clk 0:00:22.9]} 34...
Rc2+ {[%clk 0:00:01.7]} 35. Ke3 {[%clk 0:00:22.8]} 35... Rc1 {[%clk 0:00:02.1]}
36. d4+ {[%clk 0:00:20.9]} 36... Kf6 {[%clk 0:00:02.5]} 37. d5 {[%clk 0:00:16]}
1-0

[Event "*** Titled Tuesday Blitz"]
[Site "Chess.com"]
[Date "2020.05.19"]
[Round "5"]
[White "SaySpade4VIP"]
[Black "Sam_ChessMood"]
[Result "1-0"]
[WhiteElo "2696"]
[BlackElo "2870"]
[TimeControl "180+1"]
[EndTime "12:57:09 PDT"]
[Termination "SaySpade4VIP won by resignation"]

1. d4 {[%clk 0:03:00.9]} 1... Nf6 {[%clk 0:02:59.2]} 2. Bf4 {[%clk 0:02:57.8]}
2... d5 {[%clk 0:02:58.7]} 3. e3 {[%clk 0:02:57.7]} 3... c5 {[%clk 0:02:58]} 4.
c3 {[%clk 0:02:55.7]} 4... Nc6 {[%clk 0:02:56.8]} 5. Nd2 {[%clk 0:02:55.8]} 5...
Bf5 {[%clk 0:02:54.3]} 6. Ngf3 {[%clk 0:02:55.6]} 6... cxd4 {[%clk 0:02:46.8]}
7. exd4 {[%clk 0:02:53.9]} 7... e6 {[%clk 0:02:46.5]} 8. Qb3 {[%clk 0:02:49.5]}
8... Qc8 {[%clk 0:02:45.8]} 9. Nh4 {[%clk 0:02:45.6]} 9... Be4 {[%clk 0:02:43]}
10. Nxe4 {[%clk 0:02:44.1]} 10... Nxe4 {[%clk 0:02:42.8]} 11. Nf3 {[%clk
0:02:42.2]} 11... Bd6 {[%clk 0:02:41.3]} 12. Be3 {[%clk 0:02:41.8]} 12... O-O
{[%clk 0:02:38.8]} 13. Bd3 {[%clk 0:02:40.2]} 13... f5 {[%clk 0:02:37.5]} 14.
O-O {[%clk 0:02:32.8]} 14... Qd7 {[%clk 0:02:37.6]} 15. Rae1 {[%clk 0:02:29.5]}
15... Rf6 {[%clk 0:02:09.8]} 16. Bc1 {[%clk 0:01:52.5]} 16... Rg6 {[%clk
0:02:00.3]} 17. Nd2 {[%clk 0:01:25.9]} 17... Qc7 {[%clk 0:01:42.7]} 18. Nf3
{[%clk 0:01:05.6]} 18... Rf8 {[%clk 0:01:41.7]} 19. Qd1 {[%clk 0:01:01.7]} 19...
a6 {[%clk 0:00:53.3]} 20. a3 {[%clk 0:00:55]} 20... b5 {[%clk 0:00:52.4]} 21.
Kh1 {[%clk 0:00:51.2]} 21... Qb8 {[%clk 0:00:38.1]} 22. a4 {[%clk 0:00:49.9]}
22... Rff6 {[%clk 0:00:33.8]} 23. axb5 {[%clk 0:00:49.4]} 23... axb5 {[%clk
0:00:33.6]} 24. Qb3 {[%clk 0:00:42.2]} 24... b4 {[%clk 0:00:32.1]} 25. Qa4
{[%clk 0:00:38.4]} 25... Ne7 {[%clk 0:00:18.6]} 26. c4 {[%clk 0:00:26.7]} 26...
dxc4 {[%clk 0:00:17.1]} 27. Bxc4 {[%clk 0:00:27.6]} 27... Nd5 {[%clk 0:00:16.7]}
28. Qc6 {[%clk 0:00:21.5]} 28... h6 {[%clk 0:00:12.4]} 29. Bxd5 {[%clk
0:00:20.4]} 29... exd5 {[%clk 0:00:12.7]} 30. Qxd5+ {[%clk 0:00:21.3]} 30... Kh8
{[%clk 0:00:13.3]} 31. Ne5 {[%clk 0:00:18]} 31... Bxe5 {[%clk 0:00:13.5]} 32.
dxe5 {[%clk 0:00:18.9]} 32... Re6 {[%clk 0:00:12.7]} 33. Bf4 {[%clk 0:00:16.1]}
33... Qe8 {[%clk 0:00:08.2]} 34. Ra1 {[%clk 0:00:15.3]} 34... Kh7 {[%clk
0:00:08.6]} 35. f3 {[%clk 0:00:15.4]} 35... Ng5 {[%clk 0:00:07.9]} 36. Ra8
{[%clk 0:00:14.8]} 36... Qf7 {[%clk 0:00:07.5]} 37. Qd8 {[%clk 0:00:14.1]} 1-0

[Event "*** Titled Tuesday Blitz"]
[Site "Chess.com"]
[Date "2020.05.19"]
[Round "5"]
[White "grzechu96"]
[Black "Last7Samurai"]
[Result "1-0"]
[WhiteElo "2598"]
[BlackElo "2814"]
[TimeControl "180+1"]
[EndTime "12:57:09 PDT"]
[Termination "grzechu96 won by resignation"]

1. e4 {[%clk 0:03:00.9]} 1... e5 {[%clk 0:02:56.7]} 2. Nf3 {[%clk 0:03:01.1]}
2... Nc6 {[%clk 0:02:56.8]} 3. Bc4 {[%clk 0:03:00]} 3... Bc5 {[%clk 0:02:56.3]}
4. O-O {[%clk 0:02:59.6]} 4... Nf6 {[%clk 0:02:55.1]} 5. d3 {[%clk 0:03:00]}
5... a6 {[%clk 0:02:54.5]} 6. c3 {[%clk 0:02:59.1]} 6... d6 {[%clk 0:02:53.8]}
7. Re1 {[%clk 0:02:58.4]} 7... h6 {[%clk 0:02:53.3]} 8. a4 {[%clk 0:02:57.9]}
8... Ba7 {[%clk 0:02:52.9]} 9. Na3 {[%clk 0:02:58.1]} 9... O-O {[%clk
0:02:51.7]} 10. Nc2 {[%clk 0:02:58.1]} 10... Re8 {[%clk 0:02:50.7]} 11. Be3
{[%clk 0:02:58.4]} 11... Bb8 {[%clk 0:02:46.5]} 12. b4 {[%clk 0:02:54.2]} 12...
Ne7 {[%clk 0:02:43.9]} 13. Bb3 {[%clk 0:02:19.4]} 13... Ng6 {[%clk 0:02:41.2]}
14. Qd2 {[%clk 0:02:14.7]} 14... Bg4 {[%clk 0:02:32.8]} 15. Bxh6 {[%clk
0:01:51.1]} 15... Bxf3 {[%clk 0:02:26.1]} 16. gxf3 {[%clk 0:01:39.6]} 16... gxh6
{[%clk 0:01:50.5]} 17. Qxh6 {[%clk 0:01:40.5]} 17... d5 {[%clk 0:01:41]} 18. Ne3
{[%clk 0:01:19.4]} 18... Nh7 {[%clk 0:01:38.4]} 19. Bxd5 {[%clk 0:01:18.1]}
19... Qg5+ {[%clk 0:01:37.2]} 20. Qxg5 {[%clk 0:01:18.2]} 20... Nxg5 {[%clk
0:01:38.1]} 21. Bxb7 {[%clk 0:01:05.8]} 21... Nxf3+ {[%clk 0:01:38]} 22. Kh1
{[%clk 0:01:01.1]} 22... Ra7 {[%clk 0:01:32.4]} 23. Bc6 {[%clk 0:00:49.1]} 23...
Re6 {[%clk 0:01:31.1]} 24. Bd5 {[%clk 0:00:48.5]} 24... Nxe1 {[%clk 0:01:30.4]}
25. Bxe6 {[%clk 0:00:20]} 25... Nxd3 {[%clk 0:01:29.3]} 26. Bf5 {[%clk
0:00:20.3]} 26... Nxf2+ {[%clk 0:01:23.6]} 27. Kg1 {[%clk 0:00:20.4]} 27... Nd3
{[%clk 0:01:21.7]} 28. Bxg6 {[%clk 0:00:20.9]} 28... fxg6 {[%clk 0:00:54.9]} 29.
Rd1 {[%clk 0:00:20.7]} 29... Nb2 {[%clk 0:00:45.2]} 30. Rd8+ {[%clk 0:00:20.6]}
30... Kf7 {[%clk 0:00:42.8]} 31. Rxb8 {[%clk 0:00:21]} 31... Nxa4 {[%clk
0:00:43.3]} 32. Nc4 {[%clk 0:00:20.8]} 32... Nxc3 {[%clk 0:00:39.5]} 33. Nxe5+
{[%clk 0:00:21.2]} 33... Ke6 {[%clk 0:00:36.5]} 34. Nc6 {[%clk 0:00:22.1]} 34...
Nb5 {[%clk 0:00:33.4]} 35. Nxa7 {[%clk 0:00:21.8]} 35... Nxa7 {[%clk 0:00:34.3]}
36. Ra8 {[%clk 0:00:22.3]} 36... Nb5 {[%clk 0:00:33.1]} 37. Rxa6+ {[%clk
0:00:22.6]} 37... Ke5 {[%clk 0:00:32.9]} 38. Rxg6 {[%clk 0:00:20.8]} 38... Kxe4
{[%clk 0:00:31.7]} 39. h4 {[%clk 0:00:21.1]} 39... Kf5 {[%clk 0:00:31.8]} 40. h5
{[%clk 0:00:21.6]} 40... Nd4 {[%clk 0:00:31.1]} 41. Rg3 {[%clk 0:00:20.3]} 41...
Ne2+ {[%clk 0:00:30.2]} 42. Kf2 {[%clk 0:00:20.8]} 42... Nxg3 {[%clk 0:00:30.6]}
43. Kxg3 {[%clk 0:00:21.7]} 43... Kg5 {[%clk 0:00:31.1]} 44. Kf3 {[%clk
0:00:22.3]} 44... Kxh5 {[%clk 0:00:23.8]} 45. Ke4 {[%clk 0:00:22.3]} 45... Kg4
{[%clk 0:00:22.2]} 46. Kd5 {[%clk 0:00:22.4]} 46... Kf3 {[%clk 0:00:22.6]} 47.
Kc6 {[%clk 0:00:22.9]} 47... Ke4 {[%clk 0:00:23]} 48. Kxc7 {[%clk 0:00:22.6]}
48... Kd5 {[%clk 0:00:23.4]} 49. b5 {[%clk 0:00:23.5]} 1-0